bitfinex-derivatives/quotes_SOLF0:USTF0_20241024
["timestamp","ask_amount","ask_price","bid_price","bid_amount"]
[1729730933204,12.7205,172.6,172.53,2.9006]
[1729730933795,8.653,172.6,172.49,7.36]
[1729730933990,8.653,172.6,172.55,2.9003]
[1729730934190,8.653,172.6,172.51,1.45076163]
[1729730934394,8.653,172.6,172.5,1.2877]
[1729730934594,8.653,172.6,172.51,1.45071061]
[1729730934897,22.29346383,172.61,172.5,1.2877]
[1729730934898,25.19296383,172.61,172.54,2.9005]
[1729730935105,1.293,172.6,172.54,2.9005]
[1729730936707,1.293,172.6,172.55,2.9004]
[1729730937103,1.293,172.6,172.5,1.2877]
[1729730937499,2.9002,172.57,172.37,16.61434046]
[1729730937804,22.29346383,172.58,172.46,3.77201061]
[1729730938002,22.29346383,172.58,172.47,35.22724677]
[1729730938199,22.29346383,172.58,172.53,2.9006]
[1729730938601,22.29346383,172.58,172.47,22.29346383]
[1729730938803,1.2972,172.59,172.51,2.901]
[1729730939104,1.2972,172.59,172.47,22.29346383]
[1729730939306,1.2972,172.59,172.53,2.9006]
[1729730939708,22.29346383,172.58,172.48,2.32133442]
[1729730939898,22.29346383,172.58,172.52,2.9008]
[1729730940097,22.29346383,172.58,172.47,3.77222372]
[1729730940306,1.2972,172.59,172.54,2.9005]
[1729730940612,1.2972,172.59,172.49,1.4508893]
[1729730940906,1.2972,172.59,172.5,23.74435313]
[1729730941103,1.293,172.6,172.51,8.8108893]
[1729730941304,1.293,172.6,172.51,7.36]
[1729730941508,1.293,172.6,172.52,2.73281509]
[1729730941705,1.293,172.6,172.53,22.29346383]
[1729730941906,1.293,172.6,172.56,2.9002]
[1729730942104,1.293,172.6,172.52,1.2822]
[1729730942515,1.293,172.6,172.57,2.9001]
[1729730943411,25.19206383,172.66,172.59,2.8997]
[1729730943713,22.29346383,172.66,172.53,22.29346383]
[1729730944306,9.7854,172.67,172.54,13.92619088]
[1729730944307,13.92619088,172.64,172.54,13.92619088]
[1729730944703,16.82519088,172.64,172.58,2.8998]
[1729730945107,13.92619088,172.64,172.54,13.92619088]
[1729730945301,16.82549088,172.62,172.56,2.9002]
[1729730945511,13.92619088,172.62,172.52,15.20839088]
[1729730946913,13.92619088,172.62,172.53,1.45051121]
[1729730947118,13.92619088,172.62,172.52,15.20839088]
[1729730947412,13.92619088,172.6,172.5,13.92619088]
[1729730947620,2.9,172.58,172.5,13.92619088]
[1729730947812,1.1971,172.59,172.5,13.92619088]
[1729730948518,2.8999,172.58,172.5,13.92619088]
[1729730948708,13.92619088,172.58,172.48,16.2473043]
[1729730948909,13.92619088,172.56,172.46,22.51049088]
[1729730949214,13.92619088,172.52,172.43,13.92619088]
[1729730949408,7.36,172.55,172.44,1.45119749]
[1729730949409,13.92619088,172.5,172.44,1.45119749]
[1729730949611,16.82779088,172.48,172.41,2.9027]
[1729730949822,8.5916,172.49,172.39,16.24856364]
[1729730950111,1.2897,172.51,172.39,16.24856364]
[1729730950112,1.2897,172.51,172.44,16.82829088]
[1729730950318,1.2897,172.51,172.4,3.77382246]
[1729730950319,1.2897,172.51,172.46,13.92619088]
[1729730950710,1.2897,172.51,172.48,2.9015]
[1729730950915,1.2897,172.51,172.46,13.92619088]
[1729730951220,13.92619088,172.55,172.46,13.92619088]
[1729730951410,7.42,172.56,172.48,13.92619088]
[1729730952514,7.42,172.56,172.47,2.32145582]
[1729730952709,7.42,172.56,172.45,15.09759088]
[1729730952916,7.42,172.56,172.46,1.4509768]
[1729730953109,7.42,172.56,172.47,1.4509768]
[1729730953319,7.42,172.56,172.45,15.09759088]
[1729730953522,7.42,172.56,172.46,1.45099769]
[1729730953721,7.42,172.56,172.5,2.9011]
[1729730954015,7.42,172.56,172.46,2.32158844]
[1729730954222,7.42,172.56,172.47,1.45098575]
[1729730954415,7.42,172.56,172.45,15.09759088]
[1729730954611,7.42,172.56,172.46,3.77256204]
[1729730954811,7.42,172.56,172.47,1.45095582]
[1729730955019,7.42,172.56,172.48,1.45095582]
[1729730955217,10.3203,172.56,172.46,2.32152981]
[1729730955522,10.3203,172.56,172.47,1.45095515]
[1729730955722,10.3203,172.56,172.48,1.45095515]
[1729730955917,10.3203,172.56,172.46,2.32157592]
[1729730956119,10.3203,172.56,172.47,1.45098495]
[1729730956422,2.9005,172.55,172.49,2.9013]
[1729730956810,7.42,172.56,172.45,15.09759088]
[1729730956811,13.92619088,172.52,172.46,2.32159202]
[1729730957015,13.92619088,172.52,172.45,1.1714]
[1729730957211,13.92619088,172.52,172.46,1.45117489]
[1729730957416,1.2289,172.51,172.45,2.9021]
[1729730957615,2.9016,172.49,172.46,1.4511965]
[1729730957816,13.92619088,172.5,172.43,2.32205498]
[1729730957817,13.92619088,172.48,172.43,2.32205498]
[1729730958015,13.92619088,172.45,172.4,2.32228955]
[1729730958215,13.92619088,172.45,172.41,1.45157848]
[1729730958418,13.92619088,172.45,172.4,2.9029]
[1729730958722,13.92619088,172.45,172.41,1.45155856]
[1729730958929,13.92619088,172.45,172.4,2.9029]
[1729730959224,13.92619088,172.45,172.37,9.17233203]
[1729730959423,13.92619088,172.45,172.38,3.77430511]
[1729730959617,13.92619088,172.45,172.39,1.45165581]
[1729730959814,13.92619088,172.45,172.4,4.35445581]
[1729730960020,13.92619088,172.41,172.37,11.49483146]
[1729730960215,13.92619088,172.41,172.34,6.55739184]
[1729730960216,22.31731011,172.43,172.38,1.45174418]
[1729730960416,22.31731011,172.43,172.37,2.9034]
[1729730960626,22.31731011,172.43,172.38,1.45176649]
[1729730960829,22.31731011,172.43,172.35,11.49551215]
[1729730961031,22.31731011,172.43,172.36,3.77457179]
[1729730961219,23.58491011,172.43,172.37,1.45175812]
[1729730961419,26.48731011,172.43,172.36,2.9035]
[1729730961732,23.58491011,172.43,172.37,1.45176551]
[1729730962027,8.6489,172.44,172.4,2.9028]
[1729730962422,8.6489,172.44,172.35,9.16524865]
[1729730962722,8.6489,172.44,172.41,2.9027]
[1729730962921,8.6489,172.44,172.37,7.86971278]
[1729730963119,8.6489,172.44,172.41,2.9026]
[1729730963519,1.2289,172.44,172.36,9.16233351]
[1729730963727,8.6701,172.48,172.44,2.9022]
[1729730963924,1.2756,172.49,172.4,22.31731011]
[1729730964121,7.42,172.55,172.43,22.31731011]
[1729730964431,7.42,172.55,172.44,1.45163044]
[1729730964627,7.42,172.55,172.45,1.45163044]
[1729730964932,7.42,172.55,172.46,1.45109151]
[1729730965128,7.42,172.55,172.45,2.32171806]
[1729730965330,26.46761011,172.57,172.5,2.9012]
[1729730965536,7.42,172.56,172.5,2.9012]
[1729730966029,7.42,172.56,172.52,2.9008]
[1729730966240,7.42,172.56,172.46,22.31731011]
[1729730966241,22.31731011,172.6,172.46,22.31731011]
[1729730966435,7.42,172.61,172.49,22.31731011]
[1729730966732,7.42,172.61,172.5,1.45105088]
[1729730966932,7.42,172.61,172.49,22.31731011]
[1729730967127,7.42,172.61,172.53,2.9007]
[1729730967832,7.42,172.61,172.49,22.31731011]
[1729730968030,2.8996,172.6,172.54,2.9005]
[1729730969037,2.8998,172.59,172.53,2.9006]
[1729730969330,22.31731011,172.6,172.48,1.45081278]
[1729730969527,2.9001,172.57,172.46,22.31731011]
[1729730969728,22.31731011,172.6,172.47,3.77235574]
[1729730969925,22.31731011,172.6,172.48,1.45090605]
[1729730970126,22.31731011,172.6,172.47,2.32134085]
[1729730970327,22.31731011,172.6,172.48,1.45089506]
[1729730970530,22.31731011,172.6,172.49,1.45089506]
[1729730970728,2.8999,172.59,172.52,2.9008]
[1729730970934,22.31731011,172.6,172.52,2.9008]
[1729730971233,2.8999,172.58,172.52,2.9008]
[1729730971828,2.8999,172.58,172.53,2.9007]
[1729730972333,22.31731011,172.54,172.41,22.53981011]
[1729730972525,22.31731011,172.54,172.43,8.84057615]
[1729730972526,1.2175,172.53,172.43,8.84057615]
[1729730972725,1.2175,172.53,172.44,2.3214102]
[1729730972936,1.2175,172.53,172.45,1.45110319]
[1729730973123,4.1184,172.53,172.44,2.32173959]
[1729730973321,4.1184,172.53,172.43,9.16202685]
[1729730973322,4.1184,172.53,172.45,1.45108936]
[1729730973525,4.1184,172.53,172.44,2.32173221]
[1729730973723,4.1184,172.53,172.47,2.9016]
[1729730974225,1.2175,172.53,172.5,2.9012]
[1729730974424,1.2175,172.53,172.44,7.86805938]
[1729730974626,1.2175,172.53,172.45,3.77292482]
[1729730974928,1.2175,172.53,172.46,1.45112493]
[1729730975129,1.2175,172.53,172.44,4.09513456]
[1729730975327,1.2175,172.53,172.45,1.4510716]
[1729730975637,1.2175,172.53,172.42,2.4554]
[1729730975836,1.2175,172.53,172.43,4.09576735]
[1729730976022,1.2175,172.53,172.42,12.59909769]
[1729730976227,1.2175,172.53,172.43,3.77301396]
[1729730976423,1.2175,172.53,172.44,1.45115921]
[1729730976627,1.2175,172.53,172.45,1.45115921]
[1729730976829,1.2175,172.53,172.42,7.52685985]
[1729730977030,1.2175,172.53,172.43,1.45123203]
[1729730977337,1.2175,172.53,172.44,1.45123203]
[1729730977531,1.2175,172.53,172.43,2.32192923]
[1729730977731,1.2175,172.53,172.47,2.9018]
[1729730977732,2.901,172.52,172.47,2.9018]
[1729730978034,1.2175,172.53,172.47,2.9018]
[1729730978737,1.2175,172.53,172.44,1.45121927]
[1729730978931,1.2175,172.53,172.43,2.32194958]
[1729730979131,22.31731011,172.52,172.45,2.9019]
[1729730979637,25.21881011,172.49,172.43,1.4512909]
[1729730979837,32.29881011,172.49,172.43,2.9024]
[1729730980132,32.29881011,172.49,172.42,5.07145985]
[1729730980527,29.39731011,172.49,172.42,5.07145985]
[1729730980727,22.31731011,172.47,172.42,5.07145985]
[1729730981335,25.21911011,172.47,172.4,2.9028]
[1729730981527,25.21911011,172.47,172.37,4.09841188]
[1729730981732,25.21911011,172.47,172.38,3.77416105]
[1729730981934,2.9021,172.46,172.41,2.9026]
[1729730982334,22.31731011,172.47,172.36,1.2439]
[1729730982535,4.084,172.45,172.39,2.9029]
[1729730983028,2.9023,172.44,172.39,2.9029]
[1729730983232,1.1818,172.45,172.4,2.9028]
[1729730983440,1.1818,172.45,172.36,1.2439]
[1729730983741,1.1818,172.45,172.37,1.45176372]
[1729730984042,1.1818,172.45,172.36,1.2439]
[1729730984342,1.1818,172.45,172.37,1.45176372]
[1729730984533,1.1818,172.45,172.36,1.2439]
[1729730986039,1.1818,172.45,172.37,1.45173686]
[1729730986343,1.1818,172.45,172.36,17.50560545]
[1729730986639,1.1818,172.45,172.37,1.45163267]
[1729730986843,1.1818,172.45,172.36,15.1827844]
[1729730987043,1.1818,172.45,172.38,1.45161855]
[1729730987234,1.1818,172.45,172.4,2.9029]
[1729730988846,1.1818,172.45,172.39,2.903]
[1729730989048,1.1818,172.45,172.37,1.45167286]
[1729730989049,13.9388844,172.44,172.36,1.2439]
[1729730989257,13.9388844,172.44,172.37,1.45164392]
[1729730989451,13.9388844,172.44,172.36,1.2439]
[1729730989649,13.9388844,172.44,172.37,1.45166484]
[1729730989849,13.9388844,172.44,172.36,1.2439]
[1729730990345,13.9388844,172.44,172.37,1.45166484]
[1729730990545,13.9388844,172.44,172.36,1.2439]
[1729730990848,2.9025,172.43,172.38,2.9033]
[1729730991055,13.9388844,172.44,172.36,1.2439]
[1729730991452,1.1818,172.45,172.43,2.9023]
[1729730991647,1.1818,172.45,172.36,15.1827844]
[1729730991848,1.1818,172.45,172.41,2.9028]
[1729730992047,1.1818,172.45,172.36,15.1827844]
[1729730992244,1.1818,172.45,172.37,1.45169767]
[1729730992449,1.1818,172.45,172.4,2.9029]
[1729730992658,4.0839,172.45,172.37,1.45167728]
[1729730992860,4.0839,172.45,172.36,15.1827844]
[1729730993048,4.0839,172.45,172.39,2.903]
[1729730993246,13.9388844,172.44,172.39,2.903]
[1729730994258,13.9388844,172.44,172.4,2.9029]
[1729730996253,1.1818,172.45,172.36,15.1827844]
[1729730996466,13.9388844,172.48,172.38,13.9388844]
[1729730996656,13.9388844,172.49,172.39,1.45149962]
[1729730996852,13.9388844,172.49,172.45,2.9021]
[1729730997159,13.9388844,172.49,172.4,13.9388844]
[1729730998558,13.9388844,172.49,172.4,15.39028383]
[1729730998751,13.9388844,172.49,172.4,13.9388844]
[1729730998951,13.9388844,172.49,172.4,15.39028383]
[1729730999157,13.9388844,172.49,172.4,13.9388844]
[1729730999955,13.9388844,172.49,172.44,2.9022]
[1729731000660,13.9388844,172.47,172.38,6.76]
[1729731000852,13.9388844,172.47,172.39,1.45146427]
[1729731001055,9.6612,172.51,172.44,2.9021]
[1729731001362,13.9388844,172.52,172.42,13.9388844]
[1729731001655,1.217,172.55,172.53,2.9007]
[1729731001858,13.9388844,172.57,172.46,13.9388844]
[1729731002053,13.9388844,172.59,172.48,13.9388844]
[1729731002253,13.9388844,172.59,172.54,2.9004]
[1729731003259,13.9388844,172.57,172.54,2.9004]
[1729731003462,13.9388844,172.55,172.36,6.76]
[1729731003652,13.9388844,172.5,172.44,1.45088772]
[1729731003864,1.2199,172.54,172.45,13.9388844]
[1729731004152,13.9388844,172.55,172.46,1.4511369]
[1729731004355,13.9388844,172.55,172.45,13.9388844]
[1729731004666,6.76,172.56,172.47,13.9388844]
[1729731004854,6.76,172.56,172.47,15.38974582]
[1729731005054,6.76,172.56,172.51,2.9011]
[1729731005457,13.9388844,172.55,172.45,13.9388844]
[1729731005658,13.9388844,172.5,172.43,3.56422035]
[1729731005855,13.9388844,172.5,172.43,1.2428]
[1729731007267,13.9388844,172.5,172.46,2.9019]
[1729731008464,13.9388844,172.5,172.43,1.2428]
[1729731008659,13.9388844,172.53,172.43,1.2428]
[1729731008866,13.9388844,172.53,172.44,1.45132832]
[1729731009064,2.9011,172.52,172.46,2.9019]
[1729731009259,13.9388844,172.53,172.46,2.9019]
[1729731009668,16.8396844,172.53,172.43,1.2428]
[1729731009871,16.8396844,172.53,172.47,2.9017]
[1729731010967,13.9388844,172.5,172.43,1.2428]
[1729731011166,13.9388844,172.48,172.39,6.76]
[1729731011369,20.6988844,172.51,172.4,17.71200594]
[1729731011670,20.6988844,172.51,172.41,3.77312154]
[1729731011858,20.6988844,172.51,172.42,1.45126588]
[1729731012062,20.6988844,172.51,172.43,1.45121965]
[1729731012263,20.6988844,172.51,172.41,2.32185566]
[1729731012464,20.6988844,172.51,172.42,3.77306669]
[1729731012771,24.8138844,172.51,172.43,1.45121103]
[1729731012972,13.9388844,172.46,172.4,5.37067792]
[1729731013172,13.9388844,172.46,172.41,1.45143402]
[1729731013372,13.9388844,172.46,172.42,2.9025]
[1729731015871,13.9388844,172.46,172.38,9.16653793]
[1729731015872,13.9388844,172.46,172.41,2.9027]
[1729731016972,13.9388844,172.44,172.39,5.22531216]
[1729731017170,13.9388844,172.44,172.4,1.4515183]
[1729731017379,13.9388844,172.44,172.39,2.32243014]
[1729731017573,13.9388844,172.44,172.35,14.28025068]
[1729731017574,13.9388844,172.44,172.4,2.9028]
[1729731017778,13.9388844,172.44,172.36,5.07817146]
[1729731017977,13.9388844,172.42,172.37,3.77412616]
[1729731018171,13.9388844,172.42,172.37,2.9033]
[1729731020068,13.9388844,172.4,172.34,2.32308132]
[1729731020269,13.9388844,172.4,172.35,1.45194626]
[1729731020465,16.8421844,172.38,172.33,2.3231152]
[1729731020670,13.9388844,172.36,172.32,2.9042]
[1729731021576,13.9388844,172.36,172.31,2.9043]
[1729731022075,13.9388844,172.36,172.28,2.3236847]
[1729731022279,13.9388844,172.36,172.32,2.9043]
[1729731022776,13.9388844,172.36,172.31,2.9043]
[1729731023378,2.5206,172.39,172.31,2.9043]
[1729731023379,13.9388844,172.34,172.31,2.9044]
[1729731024779,13.9388844,172.34,172.28,1.45246317]
[1729731024975,13.9388844,172.32,172.29,2.9047]
[1729731025283,13.9388844,172.32,172.26,1.4525751]
[1729731025484,13.9388844,172.29,172.24,2.32397156]
[1729731025677,13.9388844,172.29,172.23,1.2295]
[1729731026378,13.9388844,172.29,172.23,2.68232311]
[1729731026579,13.9388844,172.29,172.23,1.2295]
[1729731026778,13.9388844,172.29,172.23,1.45282311]
[1729731026983,13.9388844,172.26,172.17,12.95718152]
[1729731027182,13.9388844,172.26,172.18,1.45282311]
[1729731027375,13.9388844,172.26,172.19,1.45282311]
[1729731027580,13.9388844,172.26,172.2,1.45282311]
[1729731027882,13.9388844,172.26,172.18,1.45282311]
[1729731028186,13.9388844,172.26,172.19,1.45282311]
[1729731028382,13.9388844,172.26,172.16,6.36421769]
[1729731028578,13.9388844,172.26,172.17,1.45310365]
[1729731028778,13.9388844,172.26,172.19,2.9065]
[1729731028984,13.9388844,172.26,172.17,1.45310917]
[1729731029184,13.9388844,172.26,172.18,1.45310917]
[1729731029483,13.9388844,172.26,172.17,1.45310917]
[1729731029685,15.2188844,172.26,172.18,1.45310917]
[1729731029881,15.2188844,172.26,172.17,1.45310917]
[1729731030280,15.2188844,172.26,172.21,2.9061]
[1729731031083,15.2188844,172.26,172.17,1.45310917]
[1729731031380,13.9388844,172.24,172.2,2.9062]
[1729731032380,13.9388844,172.24,172.19,2.9065]
[1729731032581,13.9388844,172.22,172.15,2.62821177]
[1729731032783,13.9388844,172.22,172.14,1.45311177]
[1729731033088,13.9388844,172.22,172.17,2.9067]
[1729731033286,13.9388844,172.22,172.12,3.7780906]
[1729731033490,1.2623,172.25,172.19,2.9064]
[1729731033691,1.2623,172.25,172.17,13.9388844]
[1729731034185,1.2623,172.25,172.19,2.9064]
[1729731034391,13.9388844,172.24,172.15,13.9388844]
[1729731034684,1.2623,172.25,172.15,13.9388844]
[1729731034890,1.2623,172.25,172.22,2.9059]
[1729731035090,1.28,172.26,172.2,13.9388844]
[1729731035388,1.2588,172.31,172.18,6.12]
[1729731035389,1.2588,172.31,172.22,13.9388844]
[1729731035579,1.2588,172.31,172.24,13.9388844]
[1729731035784,1.2588,172.31,172.26,2.9053]
[1729731035984,1.2588,172.31,172.24,13.9388844]
[1729731036191,1.2588,172.31,172.22,13.9388844]
[1729731036791,1.2588,172.31,172.27,2.905]
[1729731037286,1.2588,172.31,172.22,13.9388844]
[1729731037486,1.2588,172.31,172.28,2.9049]
[1729731037704,13.9388844,172.3,172.22,13.9388844]
[1729731038085,13.9388844,172.3,172.27,2.905]
[1729731038482,1.2588,172.31,172.22,13.9388844]
[1729731038691,1.2588,172.31,172.28,2.905]
[1729731038887,1.2588,172.31,172.22,13.9388844]
[1729731039287,1.2588,172.31,172.27,2.9051]
[1729731041400,13.9388844,172.3,172.26,2.9052]
[1729731041696,13.9388844,172.3,172.2,15.1109844]
[1729731042397,13.9388844,172.3,172.27,2.9051]
[1729731042901,6.12,172.4,172.26,13.9388844]
[1729731043100,17.6986844,172.39,172.34,2.9039]
[1729731043295,17.6986844,172.39,172.28,13.9388844]
[1729731043597,23.8186844,172.39,172.28,20.0588844]
[1729731043805,23.8186844,172.39,172.34,2.9039]
[1729731044793,23.8186844,172.39,172.28,20.0588844]
[1729731044994,1.253,172.39,172.31,13.9388844]
[1729731045197,6.12,172.42,172.33,13.9388844]
[1729731045398,13.9388844,172.43,172.33,13.9388844]
[1729731045701,16.8413844,172.43,172.33,13.9388844]
[1729731046300,13.9388844,172.43,172.36,2.9036]
[1729731046608,13.9388844,172.43,172.33,20.0588844]
[1729731047692,13.9388844,172.41,172.36,2.9036]
[1729731048103,13.9388844,172.41,172.33,6.12]
[1729731048400,13.9388844,172.41,172.38,2.9032]
[1729731049291,13.9388844,172.39,172.33,6.12]
[1729731049801,13.9388844,172.39,172.36,2.9035]
[1729731051490,13.9388844,172.41,172.39,2.903]
[1729731051699,20.0588844,172.43,172.33,13.9388844]
[1729731052204,20.0588844,172.43,172.38,2.9033]
[1729731053199,20.0588844,172.43,172.37,2.9033]
[1729731053391,20.0588844,172.43,172.33,13.9388844]
[1729731054104,20.0588844,172.43,172.36,2.9036]
[1729731054302,13.9388844,172.41,172.31,15.39085444]
[1729731055100,13.9388844,172.39,172.31,7.57197004]
[1729731055301,13.9388844,172.39,172.31,6.12]
[1729731055505,13.9388844,172.39,172.3,1.45197004]
[1729731055804,13.9388844,172.39,172.36,2.9035]
[1729731056603,13.9388844,172.39,172.36,2.9036]
[1729731057305,13.9388844,172.39,172.3,7.57205039]
[1729731057504,13.9388844,172.39,172.37,2.9034]
[1729731057799,13.9388844,172.39,172.3,7.57205039]
[1729731058002,15.1922844,172.39,172.3,6.12]
[1729731058201,13.9388844,172.35,172.27,13.9388844]
[1729731058403,13.9388844,172.35,172.28,6.12]
[1729731058594,13.9388844,172.35,172.33,2.904]
[1729731058799,13.9388844,172.35,172.28,6.12]
[1729731059098,13.9388844,172.32,172.26,1.45247783]
[1729731059407,13.9388844,172.32,172.28,2.9049]
[1729731059607,13.9388844,172.32,172.22,1.45247783]
[1729731059802,16.3875844,172.32,172.22,1.45247783]
[1729731061296,22.1875844,172.32,172.22,1.45247783]
[1729731061509,16.3875844,172.32,172.22,1.45247783]
[1729731061900,22.1875844,172.32,172.22,1.45247783]
[1729731062411,16.3875844,172.32,172.27,2.905]
[1729731062709,16.3875844,172.32,172.22,1.45247783]
[1729731062710,13.9388844,172.3,172.22,1.45247783]
[1729731062901,13.9388844,172.25,172.21,1.45247783]
[1729731063097,13.9388844,172.23,172.14,21.0192844]
[1729731063299,13.9388844,172.23,172.14,29.88880125]
[1729731063501,13.9388844,172.23,172.15,3.77776977]
[1729731063703,13.9388844,172.23,172.2,2.9061]
[1729731063900,13.9388844,172.23,172.15,3.77776977]
[1729731064210,13.9388844,172.23,172.15,1.45298837]
[1729731064608,13.9388844,172.23,172.21,2.9061]
[1729731064810,13.9388844,172.25,172.15,1.45298837]
[1729731065005,13.9388844,172.25,172.23,2.9058]
[1729731065596,13.9388844,172.25,172.14,23.3444246]
[1729731065597,13.9388844,172.25,172.14,1.2804]
[1729731065797,13.9388844,172.18,172.06,17.71758743]
[1729731066108,13.9388844,172.18,172.06,21.42758743]
[1729731066302,13.9388844,172.18,172.07,1.45334732]
[1729731067309,13.9388844,172.15,172.07,1.45334732]
[1729731067508,13.9388844,172.15,172.06,23.4488844]
[1729731067696,13.9388844,172.15,172.13,2.9075]
[1729731068412,22.35198246,172.17,172.13,2.9075]
[1729731071607,2.4278,172.19,172.16,2.9069]
[1729731071806,14.5003,172.58,172.11,28.15198246]
[1729731071807,22.35198246,172.24,172.11,28.15198246]
[1729731072006,1.2305,172.25,172.14,22.35198246]
[1729731072200,1.2305,172.25,172.15,2.5153]
[1729731072402,23.58248246,172.25,172.15,2.5153]
[1729731072602,26.09298246,172.25,172.15,2.5153]
[1729731072802,22.35198246,172.22,172.19,2.9063]
[1729731073001,22.35198246,172.22,172.11,5.8]
[1729731073906,3.741,172.25,172.12,22.35198246]
[1729731074104,3.741,172.25,172.21,2.906]
[1729731074306,3.741,172.25,172.16,5.8]
[1729731074715,3.741,172.25,172.21,2.9061]
[1729731075010,22.35198246,172.22,172.12,5.8]
[1729731075412,5.8,172.21,172.12,5.8]
[1729731077215,5.8,172.21,172.16,2.9068]
[1729731077415,5.8,172.21,172.12,5.8]
[1729731077816,5.8,172.21,172.16,2.9068]
[1729731078013,22.35198246,172.17,171.99,8.75516896]
[1729731078314,22.35198246,172.17,172.08,2.9082]
[1729731078510,22.35198246,172.17,172.05,3.695]
[1729731078715,22.35198246,172.17,172.05,9.495]
[1729731079418,22.35198246,172.17,172.08,2.9082]
[1729731079624,22.35198246,172.17,172.05,9.495]
[1729731080911,22.35198246,172.17,172.13,2.9074]
[1729731081218,22.35198246,172.17,172.05,9.495]
[1729731081419,22.35198246,172.17,172.08,2.9082]
[1729731081715,22.35198246,172.17,172.05,9.495]
[1729731082114,22.35198246,172.17,172.14,2.9073]
[1729731084816,5.8,172.21,172.08,22.35198246]
[1729731085017,5.8,172.21,172.09,1.45398721]
[1729731085320,5.8,172.21,172.1,5.8]
[1729731086210,5.8,172.21,172.1,7.25398721]
[1729731086520,5.8,172.21,172.1,5.8]
[1729731087321,5.8,172.21,172.16,2.9069]
[1729731088919,22.35198246,172.2,172.16,2.9069]
[1729731089225,22.35198246,172.2,172.1,5.8]
[1729731089226,5.8,172.21,172.18,2.9066]
[1729731089516,5.8,172.21,172.1,7.25398721]
[1729731090123,5.8,172.21,172.11,1.45398721]
[1729731090426,13.96383585,172.19,172.16,2.9069]
[1729731091920,13.96383585,172.17,172.1,1.45379108]
[1729731092122,13.96383585,172.12,172.07,1.45379108]
[1729731092623,13.96383585,172.12,172.06,1.45379108]
[1729731092829,13.96383585,172.12,172.07,1.45379108]
[1729731093127,13.96383585,172.12,172.11,2.9078]
[1729731093916,13.96383585,172.15,172.06,1.45379108]
[1729731094112,13.96383585,172.15,172.13,2.9075]
[1729731096228,13.96383585,172.15,172.12,2.9076]
[1729731097423,13.96383585,172.13,172.06,1.45379108]
[1729731097820,13.96383585,172.13,172.05,5.09119108]
[1729731098016,13.96383585,172.13,172.1,2.9079]
[1729731098623,13.96383585,172.11,172.01,13.96383585]
[1729731098816,13.96383585,172.08,172.02,1.45424631]
[1729731099017,13.96383585,172.08,172.05,2.9087]
[1729731099217,13.96383585,172.08,172.01,1.45424631]
[1729731099413,13.96383585,172.08,172.03,2.9092]
[1729731099614,13.96383585,172.08,172.01,1.45424631]
[1729731099816,13.96383585,172.08,172.0,3.87384631]
[1729731100017,13.96383585,172.08,172.05,2.9088]
[1729731100525,13.96383585,172.06,172.05,2.9088]
[1729731102526,13.96383585,172.06,171.99,6.95424631]
[1729731102933,13.96383585,172.06,171.99,5.5]
[1729731103233,13.96383585,172.06,172.05,2.9088]
[1729731103435,13.96383585,172.08,171.99,5.5]
[1729731103634,13.96383585,172.08,172.06,2.9086]
[1729731103824,13.96383585,172.08,171.99,19.46383585]
[1729731104027,13.96383585,172.08,172.0,1.45424631]
[1729731104229,13.96383585,172.08,172.06,2.9086]
[1729731105641,13.96383585,172.08,171.99,5.5]
[1729731105848,1.25,172.09,171.97,1.45463149]
[1729731106143,13.96383585,172.05,171.96,24.48524387]
[1729731106444,13.96383585,172.07,171.98,13.96383585]
[1729731107246,13.96383585,172.07,172.06,2.9087]
[1729731108144,13.96383585,172.07,171.98,13.96383585]
[1729731108145,13.96383585,172.07,172.05,2.9088]
[1729731108743,15.21383585,172.09,172.06,2.9087]
[1729731108941,15.21383585,172.09,171.98,13.96383585]
[1729731109439,13.96383585,172.07,171.97,15.41846734]
[1729731110835,13.96383585,172.07,172.06,2.9087]
[1729731111435,16.43273585,172.1,171.99,13.96383585]
[1729731111647,1.1733,172.1,172.01,13.96383585]
[1729731111836,1.1733,172.1,172.02,5.5]
[1729731112441,5.5,172.13,172.03,13.96383585]
[1729731112636,5.5,172.13,172.03,17.74653585]
[1729731113736,13.96383585,172.14,172.1,2.9079]
[1729731114043,19.46383585,172.14,172.1,2.9079]
[1729731114443,8.9932411,172.14,172.11,3.7810481]